fUSD/lending_fUSD_20240217
["ID","MTS","AMOUNT","RATE_DAILY","PERIOD"]
[314340761,1708201832686,-168.89,0.00038695,2]
[314340762,1708201832696,-7795.59884097,0.00038698,2]
[314340763,1708201832706,-175.05428648,0.00038699,9]
[314340764,1708201832715,-22530.6552571,0.00038789,10]
[314340765,1708201832724,-5632.66381428,0.00038789,10]
[314340766,1708201832734,-153.06524293,0.0003879,2]
[314340767,1708201832743,-1702.94399309,0.0003879,12]
[314340768,1708201832753,-191.01542904,0.0003879,2]
[314340769,1708201832762,-1009.24265222,0.0003879,2]
[314340770,1708201832771,-45061.3105142,0.0003879,10]
[314340771,1708201832780,-254.22,0.0003879,2]
[314340772,1708201832790,-361.6787,0.0003879,2]
[314340773,1708201832799,-155.6126,0.0003879,2]
[314340774,1708201832808,-100000.0,0.0003879,2]
[314340775,1708201832819,-163.95006282,0.00038798,12]
[314340776,1708201832829,-150.0,0.00038798,2]
[314340777,1708201832838,-142495.0169,0.00038799,2]
[314340778,1708201832847,-1530.80067432,0.00038799,2]
[314340779,1708201832859,-211.70935577,0.00038799,7]
[314340780,1708201832868,-646.0944082,0.00038799,2]
[314340781,1708201832878,-279.82627614,0.00038799,2]
[314340782,1708201832887,-409.44193351,0.00038799,2]
[314340783,1708201832897,-5000.0,0.00038799,3]
[314340784,1708201832906,-93422.4462,0.000388,2]
[314340785,1708201832915,-500.0,0.000388,2]
[314340786,1708201832924,-224.1893221,0.000388,2]
[314340787,1708201832935,-188.67180668,0.000388,30]
[314340788,1708201832945,-270.25,0.000388,2]
[314340789,1708201832954,-1000.0,0.00038809,2]
[314340790,1708201832963,-1341.12508464,0.00038812,2]
[314340791,1708201832973,-254.22,0.0003886,2]
[314340792,1708201832982,-291.8230365,0.0003886,2]
[314340793,1708201832992,-88729.6179673,0.00038869,4]
[314340794,1708201833002,-254.22,0.00038869,2]
[314340795,1708201833011,-45061.3105142,0.00038879,10]
[314340796,1708201833020,-254.22,0.00038879,2]
[314340797,1708201833030,-118285.9401,0.0003888,10]
[314340798,1708201833039,-254.22,0.0003888,2]
[314340799,1708201833048,-1702.94399303,0.0003888,12]
[314340800,1708201833057,-1417.5,0.00038889,2]
[314340801,1708201833066,-88729.6179673,0.00038889,4]
[314340802,1708201833076,-1732.5,0.00038889,2]
[314340803,1708201833085,-443648.089837,0.0003889,4]
[314340804,1708201833094,-150.0,0.00038896,2]
[314340805,1708201833103,-214.06588635,0.00038898,4]
[314340806,1708201833112,-151256.32407302,0.00038899,2]
[314340807,1708201833121,-1000.0,0.00038899,2]
[314340808,1708201833130,-3000.0,0.00038899,2]
[314340809,1708201833140,-278658.21254049,0.00038899,2]
[314340810,1708201833166,-13955.96641783,0.00038899,2]
[314340811,1708201833195,-291.8230365,0.0003889,2]
[314340812,1708201833205,-885.26912275,0.00038899,2]
[314340813,1708201833242,-170.61,0.0003851,10]
[314340814,1708201833251,-193.93346348,0.0003889,2]
[314340815,1708201833268,-97.88957302,0.0003889,2]
[314340816,1708201833277,-1201.67625998,0.00038899,2]
[314340817,1708201833290,-336345.19574611,0.00038899,2]
[314340818,1708201833301,-148040.39050796,0.00038899,2]
[314340822,1708201837815,-3113.83748,0.00031589,2]
[314340823,1708201837824,-2787.62823078,0.000388,2]
[314340824,1708201837835,-491205.83338447,0.00038899,2]
[314340825,1708201837845,-14197.43217119,0.00038899,2]
[314340826,1708201837855,-224.02061105,0.000389,2]
[314340827,1708201837865,-181.41681254,0.000389,2]
[314340828,1708201837875,-39355.74222131,0.000389,30]
[314340829,1708201837885,-162913.9543413,0.000389,3]
[314340830,1708201837898,-260462.69840913,0.000389,3]
[314340848,1708201841077,-3086.93404,0.000389,3]
[314340849,1708201841089,-1784.58657581,0.000389,3]
[314340850,1708201841101,-513.84877829,0.000389,3]
[314340851,1708201841115,-300.0,0.000389,3]
[314340852,1708201841145,-1950.58610927,0.000389,3]
[314340853,1708201841190,-427.83861856,0.000389,3]
[314340870,1708201842558,-316.220239,0.000389,3]
[314340871,1708201842613,-496.332,0.000389,3]
[314340872,1708201842625,-400.20172676,0.000389,3]
[314340873,1708201842637,-877.77369862,0.000389,3]
[314340874,1708201842731,-1855.68898327,0.000389,3]
[314340875,1708201842742,-2992.32307398,0.000389,3]
[314340876,1708201842782,-4432.50346096,0.000389,3]
[314340877,1708201842841,-802.65195171,0.000389,3]
[314340878,1708201842853,-1734.03014487,0.000389,3]
[314340879,1708201842865,-784.3051304,0.000389,3]
[314340880,1708201842905,-1019710.71265097,0.000389,3]
[314340885,1708201845548,-344.50075513,0.0003889,10]
[314340886,1708201845658,-508.58924487,0.0003889,10]
[314340887,1708201845667,-9300.58184262,0.000389,3]
[314340888,1708201845679,-3890.23165777,0.000389,3]
[314340889,1708201845693,-110423.02372538,0.000389,3]
[314340890,1708201845701,-23251.97824405,0.000389,2]
[314340891,1708201884064,361.96279436,0.00025,3]
[314340892,1708201884090,388.03720564,0.00025,3]
[314340893,1708202366734,750.0,0.00025,3]
[314340900,1708203031735,-181.72443109,0.00026998,2]
[314340902,1708203031745,-148.3012121,0.00026999,2]
[314340904,1708203031757,-21.93864277,0.00026999,2]
[314340905,1708203031766,-170.23985487,0.00026999,2]
[314340906,1708203031776,-800.0,0.00027,3]
[314340907,1708203031786,-170.23985487,0.00027,2]
[314340908,1708203031795,-850.0,0.00029,3]
[314340909,1708203031804,-900.0,0.00031,3]
[314340910,1708203031814,-950.0,0.00033,3]
[314340911,1708203031823,-694.53,0.00034513,2]
[314340912,1708203031834,-23900.0,0.00035898,2]
[314340913,1708203031845,-158.73485999,0.0003593,2]
[314340914,1708203031854,-150.0,0.00035962,3]
[314340915,1708203031863,-1773.45,0.00035963,2]
[314340916,1708203031874,-2000.0,0.00035963,2]
[314340917,1708203031883,-499.99,0.00035963,2]
[314340918,1708203031893,-246.99,0.00035963,2]
[314340919,1708203031902,-238.57,0.00035987,2]
[314340920,1708203031913,-490.08575177,0.0003603,4]
[314340921,1708203031922,-932.87,0.00036129,2]
[314340922,1708203031931,-182.37,0.00036149,2]
[314340923,1708203031940,-250.0,0.00036154,2]
[314340924,1708203031950,-150.0,0.00036201,2]
[314340925,1708203031959,-158.73485993,0.00036275,2]
[314340926,1708203031969,-150.0,0.00036283,2]
[314340927,1708203031979,-832.97,0.00036315,2]
[314340928,1708203031989,-800.0,0.00036321,2]
[314340929,1708203031998,-500.0,0.00036335,2]
[314340930,1708203032008,-250.0,0.00036344,2]
[314340931,1708203032017,-165.98,0.00036425,2]
[314340932,1708203032028,-158.73485993,0.0003662,2]
[314340933,1708203032039,-165.98,0.00036696,2]
[314340934,1708203032048,-694.53,0.00036777,2]
[314340935,1708203032057,-200.0,0.00036781,2]
[314340936,1708203032067,-179.07,0.00036781,2]
[314340937,1708203032076,-234.021833,0.00036798,24]
[314340938,1708203032085,-150.0,0.00036831,2]
[314340939,1708203032094,-234.021833,0.00036898,24]
[314340940,1708203032104,-158.73485993,0.00036966,2]
[314340941,1708203032113,-165.98,0.00036967,2]
[314340942,1708203032122,-234.021833,0.00036998,24]
[314340943,1708203032131,-2000.0,0.00037,2]
[314340944,1708203032142,-1346.7848607,0.00037,3]
[314340945,1708203032152,-182.37,0.00037089,2]
[314340946,1708203032161,-234.021833,0.00037098,25]
[314340947,1708203032171,-234.021833,0.00037198,25]
[314340948,1708203032180,-165.98,0.00037238,2]
[314340949,1708203032190,-1074.47,0.00037286,2]
[314340951,1708203032199,-234.021833,0.00037298,25]
[314340953,1708203032208,-158.73485993,0.00037311,2]
[314340955,1708203032217,-163.64,0.00037321,2]
[314340957,1708203032226,-3912.18554123,0.0003739,2]
[314340959,1708203032235,-503.74,0.00037394,2]
[314340961,1708203032244,-234.021833,0.00037398,26]
[314340963,1708203032253,-12507.0,0.000374,2]
[314340965,1708203032263,-200.0,0.00037411,2]
[314340967,1708203032271,-932.87,0.00037466,2]
[314340969,1708203032282,-234.021833,0.00037498,26]
[314340971,1708203032291,-165.98,0.00037509,2]
[314340973,1708203032301,-315.29,0.00037578,2]
[314340975,1708203032310,-234.021833,0.00037598,26]
[314340977,1708203032320,-158.73485993,0.00037656,2]
[314340979,1708203032329,-9302.57753253,0.00037676,2]
[314340981,1708203032338,-234.021833,0.00037698,26]
[314340983,1708203032347,-465.34,0.00037724,10]
[314340985,1708203032357,-135073.0,0.00037734,2]
[314340987,1708203032366,-315.29,0.00037776,2]
[314340989,1708203032377,-165.98,0.00037781,2]
[314340991,1708203032386,-166.82,0.00037792,2]
[314340993,1708203032395,-234.021833,0.00037798,26]
[314340995,1708203032405,-150.99,0.00037812,2]
[314340997,1708203032414,-234.021833,0.00037898,26]
[314340999,1708203032423,-225.52995797,0.00037915,8]
[314341001,1708203032433,-832.97,0.00037959,2]
[314341003,1708203032441,-315.29,0.00037974,2]
[314341005,1708203032450,-788.74929389,0.00038,6]
[314341007,1708203032460,-158.73485993,0.00038001,2]
[314341009,1708203032469,-48205.1228757,0.00038005,10]
[314341011,1708203032479,-6025.64035946,0.00038015,10]
[314341013,1708203032488,-1000.0,0.00038015,2]
[314341015,1708203032497,-184544.2665,0.00038015,2]
[314341017,1708203032507,-2500.0,0.00038015,2]
[314341019,1708203032516,-182.37,0.00038029,2]
[314341021,1708203032525,-165.98,0.00038052,2]
[314341023,1708203032535,-1275.8276808,0.00038121,2]
[314341024,1708203032545,-315.29,0.00038172,2]
[314341027,1708203032554,-3012.82017973,0.00038269,10]
[314341028,1708203032564,-165.98,0.00038323,2]
[314341031,1708203032574,-158.73485993,0.00038346,2]
[314341033,1708203032585,-260.84,0.00038356,15]
[314341035,1708203032593,-151.87,0.00038356,2]
[314341037,1708203032602,-315.29,0.0003837,2]
[314341039,1708203032612,-1275.8276808,0.00038489,2]
[314341041,1708203032621,-3012.82017973,0.00038491,10]
[314341043,1708203032630,-1356.72032309,0.00038522,2]
[314341045,1708203032639,-3012.82017973,0.00038557,10]
[314341047,1708203032648,-1167.93416793,0.00038567,2]
[314341049,1708203032658,-315.29,0.00038567,2]
[314341050,1708203032667,-6025.64035946,0.00038568,10]
[314341052,1708203032677,-158.73485993,0.00038691,2]
[314341054,1708203032686,-958.78051959,0.000387,2]
[314341056,1708203032696,-315.29,0.00038765,2]
[314341059,1708203032705,-3012.82017973,0.00038779,10]
[314341060,1708203032714,-1738.11836132,0.00038789,12]
[314341063,1708203032724,-57243.5834149,0.0003879,10]
[314341065,1708203032735,-500.0,0.000388,2]
[314341067,1708203032745,-100000.0,0.000388,2]
[314341069,1708203032754,-264.60426371,0.000388,12]
[314341071,1708203032763,-153.06524285,0.000388,2]
[314341073,1708203032773,-191.01542904,0.000388,2]
[314341074,1708203032782,-932.87,0.00038802,2]
[314341076,1708203032791,-1275.8276808,0.00038804,2]
[314341078,1708203032801,-411.17,0.00038806,2]
[314341081,1708203032810,-1356.72032309,0.00038814,2]
[314341082,1708203032819,-73775.853404,0.00038869,4]
[314341085,1708203032829,-1738.11836132,0.00038879,12]
[314341086,1708203032840,-147551.706808,0.0003888,4]
[314341088,1708203032849,-1000.0,0.00038888,2]
[314341091,1708203032859,-13459.7634207,0.00038889,2]
[314341093,1708203032868,-73775.853404,0.0003889,4]
[314341095,1708203032878,-2476.15249039,0.00038899,2]
[314341096,1708203032888,-20488.1352451,0.00038899,2]
[314341099,1708203032897,-73775.853404,0.00038899,4]
[314341101,1708203032906,-251811.77939621,0.000389,2]
[314341102,1708203032916,-152.345634,0.000389,5]
[314341105,1708203032926,-2000.0,0.000389,2]
[314341107,1708203032936,-200.0,0.000389,2]
[314341108,1708203032945,-2000.0,0.000389,2]
[314341111,1708203032955,-200.0,0.000389,2]
[314341113,1708203032964,-2000.0,0.000389,2]
[314341114,1708203032973,-200.0,0.000389,2]
[314341116,1708203032983,-354.68,0.000389,2]
[314341119,1708203032992,-500.0,0.000389,2]
[314341121,1708203033001,-3000.0,0.000389,2]
[314341123,1708203033011,-2000.0,0.000389,2]
[314341125,1708203033021,-200.0,0.000389,2]
[314341126,1708203033029,-97174.8942151,0.00038909,2]
[314341129,1708203033039,-80956.74622515,0.00038926,4]
[314341132,1708203033063,-12900.0,0.00038926,4]
[314341135,1708203033078,-36040.45128026,0.00038926,4]
[314341137,1708203033090,-3679.80063238,0.00038926,4]
[314341142,1708203033126,-340.47970974,0.00038926,4]
[314341144,1708203033138,-13634.22896047,0.00038926,4]
[314341146,1708203033148,-55948.42065655,0.00038936,2]
[314341148,1708203033159,-14612.42180161,0.00038936,2]
[314341158,1708203037778,-9302.57753252,0.00038256,2]
[314341159,1708203037788,-43066.92092576,0.00038936,2]
[314341160,1708203037800,-1720.63230353,0.00038936,2]
[314341161,1708203037836,-3691.64847901,0.00038936,2]
[314341162,1708203037868,-326.45,0.00038936,2]
[314341163,1708203037881,-406.46916604,0.00038936,2]
[314341164,1708203037963,-9540.14944737,0.00038936,2]
[314341165,1708203037990,-384.24477354,0.00038936,2]
[314341166,1708203038002,-692.79472096,0.00038936,2]
[314341167,1708203038042,-6543.14688264,0.00038936,2]
[314341168,1708203038053,-2854.52041341,0.00038936,2]
[314341169,1708203038078,-124363.08377718,0.00038936,2]
[314341170,1708203038087,-315.29,0.00038963,2]
[314341171,1708203038096,-1738.11836132,0.00038969,12]
[314341172,1708203038106,-1907.83291422,0.00039,2]
[314341173,1708203038115,-1715.3355522,0.00039,120]
[314341174,1708203038124,-270.25,0.00039,2]
[314341175,1708203038134,-206.0,0.00039013,2]
[314341176,1708203038146,-158.73485993,0.00039037,2]
[314341177,1708203038156,-694.53,0.00039041,2]
[314341178,1708203038166,-1738.11836132,0.00039059,12]
[314341179,1708203038175,-1167.93416793,0.00039108,2]
[314341180,1708203038185,-1738.11836132,0.00039149,12]
[314341181,1708203038194,-315.29,0.00039161,2]
[314341182,1708203038204,-270.25,0.000392,2]
[314341183,1708203038213,-1738.11836132,0.00039239,12]
[314341184,1708203038223,-629.44,0.0003926,2]
[314341185,1708203038232,-2000.0,0.00039289,2]
[314341186,1708203038241,-200.0,0.00039289,2]
[314341187,1708203038251,-2000.0,0.00039289,2]
[314341188,1708203038261,-200.0,0.00039289,2]
[314341189,1708203038270,-2000.0,0.00039289,2]
[314341190,1708203038279,-200.0,0.00039289,2]
[314341191,1708203038289,-1556.99802347,0.00039289,2]
[314341192,1708203038299,-200.0,0.00039289,2]
[314341193,1708203038308,-405.51,0.00039315,2]
[314341194,1708203038318,-405.51,0.00039315,2]
[314341195,1708203038327,-405.51,0.00039315,2]
[314341197,1708203038337,-405.51,0.00039315,2]
[314341199,1708203038346,-405.51,0.00039315,2]
[314341200,1708203038355,-405.51,0.00039315,2]
[314341202,1708203038365,-915.91,0.00039315,2]
[314341205,1708203038374,-915.91,0.00039315,2]
[314341207,1708203038383,-405.51,0.00039315,2]
[314341209,1708203038392,-915.91,0.00039315,2]
[314341210,1708203038401,-405.51,0.00039315,2]
[314341213,1708203038414,-811.02,0.00039315,2]
[314341215,1708203038423,-1831.82,0.00039315,2]
[314341217,1708203038433,-405.51,0.00039315,2]
[314341219,1708203038443,-317.73,0.00039315,2]
[314341221,1708203038452,-405.51,0.00039315,2]
[314341223,1708203038461,-405.51,0.00039315,2]
[314341225,1708203038470,-1738.11836132,0.0003933,13]
[314341228,1708203038480,-154.0,0.00039356,7]
[314341230,1708203038490,-315.29,0.00039359,2]
[314341232,1708203038499,-1275.8276808,0.00039364,2]
[314341234,1708203038509,-152.0,0.00039381,3]
[314341236,1708203038519,-158.73485993,0.00039382,2]
[314341238,1708203038528,-1356.7203231,0.00039386,2]
[314341240,1708203038538,-270.25,0.000394,2]
[314341242,1708203038548,-1738.11836132,0.0003942,13]
[314341245,1708203038557,-273.05,0.00039499,2]
[314341247,1708203038566,-150.0,0.000395,30]
[314341249,1708203038576,-1738.11836132,0.0003951,13]
[314341251,1708203038586,-151.0,0.00039512,7]
[314341252,1708203038596,-315.29,0.00039556,2]
[314341255,1708203038605,-210.0,0.00039558,5]
[314341257,1708203038614,-73775.853404,0.0003957,5]
[314341259,1708203038624,-1138.54798156,0.00039585,2]
[314341261,1708203038633,-186.55085076,0.00039585,2]
[314341263,1708203038643,-430.72960546,0.00039585,2]
[314341265,1708203038652,-272.961289,0.00039585,2]
[314341267,1708203038663,-1020.53378288,0.00039585,2]
[314341269,1708203038672,-1738.11836132,0.000396,13]
[314341271,1708203038682,-48311.71,0.000396,4]
[314341273,1708203038692,-270.25,0.000396,2]
[314341275,1708203038701,-832.97,0.00039603,2]
[314341277,1708203038711,-1275.8276809,0.00039643,2]
[314341279,1708203038720,-1167.93416793,0.0003965,2]
[314341281,1708203038730,-412955.16996083,0.0003968,2]
[314341284,1708203038744,-260462.69840913,0.0003968,2]
[314341286,1708203038760,-481.70408771,0.0003968,2]
[314341524,1708203041185,-533.49381657,0.0003968,2]
[314341535,1708203041301,-393.13803023,0.0003968,2]
[314341537,1708203041313,-1286.98426,0.0003968,2]
[314341539,1708203041325,-5295.7046283,0.0003968,2]
[314341689,1708203042787,-2575.55,0.00038837,2]
[314341700,1708203042886,-1114.35303751,0.00038837,2]
[314341703,1708203042898,-427.31719544,0.00038837,2]
[314341714,1708203042993,-253.37204009,0.00038837,2]
[314341894,1708203045833,-4931.98525948,0.00038837,2]
[314341895,1708203045845,-7468.62304962,0.00039653,2]
[314341896,1708203045865,-3085.26210118,0.00039653,2]
[314341897,1708203045874,-10815.7944507,0.0003968,2]
[314341898,1708203045898,-577.256841,0.0003968,2]
[314341899,1708203045910,-603.18040177,0.0003968,2]
[314341900,1708203045945,-4323.49528646,0.0003968,2]
[314341901,1708203046001,-49793.70885506,0.0003968,2]
[314341902,1708203046060,-359.268,0.0003968,2]
[314341904,1708203069561,861.96279436,0.00023,2]
[314341905,1708203069584,2000.0,0.00023,2]
[314341906,1708203069607,2000.0,0.00023,2]
[314341907,1708203069848,2000.0,0.00023,2]
[314341908,1708203069873,2000.0,0.00023,2]
[314341909,1708203069896,2000.0,0.00023,2]
[314341910,1708203069921,2000.0,0.00023,2]
[314341911,1708203069942,2000.0,0.00023,2]
[314341912,1708203069962,2000.0,0.00023,2]
[314341913,1708203069983,2000.0,0.00023,2]
[314341914,1708203070006,2000.0,0.00023,2]
[314341915,1708203070027,2000.0,0.00023,2]
[314341916,1708203070048,2000.0,0.00023,2]
[314341917,1708203070068,2000.0,0.00023,2]
[314341918,1708203070090,2000.0,0.00023,2]
[314341919,1708203070110,2000.0,0.00023,2]
[314341920,1708203070130,2000.0,0.00023,2]
[314341921,1708203070152,2000.0,0.00023,2]
[314341922,1708203070172,2000.0,0.00023,2]
[314341923,1708203070193,347.0,0.00023,2]
[314341924,1708203070221,1800.0,0.00023,2]
[314341925,1708203070246,180.0,0.00023,2]
[314341926,1708203070269,180.0,0.00023,2]
[314341927,1708203070293,180.0,0.00023,2]
[314341928,1708203070317,180.0,0.00023,2]
[314341929,1708203070341,180.0,0.00023,2]
[314341930,1708203070365,180.0,0.00023,2]
[314341931,1708203070389,180.0,0.00023,2]
[314341932,1708203070413,180.0,0.00023,2]
[314341933,1708203070437,180000.0,0.00023,2]
[314341936,1708203263826,9626.73792131,0.00025,7]
[314341962,1708204232119,-234.06410995,0.0002299,2]
[314341963,1708204232129,-183.28899706,0.00022998,2]
[314341964,1708204232138,-265.8797573,0.00022999,2]
[314341965,1708204232147,-150.0,0.00022999,2]
[314341966,1708204232158,-150.0,0.00022999,2]
[314341967,1708204232167,-149940.18923894,0.00023,2]
[314341968,1708204232179,-10634.35246484,0.00023,2]
[314341969,1708204232191,-20446.42090494,0.00023,2]
[314341970,1708204232207,-928.53687171,0.00023,2]
[314341971,1708204232218,-14134.85866219,0.00023,2]
[314341972,1708204232231,-10311.0,0.00023,2]
[314341973,1708204232243,-4044.2831772,0.00023,2]
[314341974,1708204232281,-499.95,0.00023,2]
[314341975,1708204232293,-653.000008,0.00023,2]
[314341976,1708204232304,-886.0,0.00023,2]
[314341977,1708204232316,-2734.84596553,0.00023,2]
[314341980,1708204238040,-23330.35616421,0.00023,2]
[314341981,1708204238097,-1581.60849167,0.00023,2]
[314341982,1708204238159,-14698.51540309,0.00023,2]
[314341983,1708204238262,-582832.13328507,0.00023,2]
[314341984,1708204238271,-517.88050012,0.0002459,2]
[314341985,1708204238280,-529.98472925,0.0002469,2]
[314341986,1708204238289,-750.0,0.00025,3]
[314341987,1708204238298,-1872.94548102,0.0002509,2]
[314341988,1708204238310,-7656.37117725,0.0002509,2]
[314341989,1708204238319,-1539.45457061,0.0002509,2]
[314341991,1708204238328,-2361.04789368,0.000263,2]
[314341993,1708204238338,-499.99,0.000263,2]
[314341995,1708204238346,-529.9847292,0.00026846,3]
[314341997,1708204238356,-690.44253496,0.000272,2]
[314341999,1708204238365,-529.9847292,0.00029001,4]
[314342000,1708204238374,-703.48,0.00029051,2]
[314342002,1708204238383,-6430.76507422,0.0002996,2]
[314342004,1708204238392,-751.40646168,0.0003,2]
[314342006,1708204238401,-344.57865703,0.0003,2]
[314342008,1708204238410,-4296.04858901,0.0003,2]
[314342010,1708204238419,-597.79736015,0.000301,2]
[314342012,1708204238428,-250.0,0.00030978,2]
[314342014,1708204238437,-150.0,0.00031007,2]
[314342015,1708204238446,-1101.23,0.00031127,2]
[314342017,1708204238455,-529.9847292,0.00031157,5]
[314342018,1708204238464,-14510.17,0.00031194,2]
[314342019,1708204238474,-11499.23,0.00031194,2]
[314342020,1708204238483,-250.0,0.00031213,2]
[314342021,1708204238492,-31003.25,0.00031224,2]
[314342022,1708204238501,-23900.0,0.00031236,2]
[314342023,1708204238510,-1477.87,0.00031256,2]
[314342024,1708204238518,-179.07,0.00031277,2]
[314342025,1708204238527,-152.09,0.00031292,2]
[314342026,1708204238553,-703.48,0.00031315,2]
[314342028,1708204238577,-9994.49,0.00031369,2]
[314342050,1708204238782,-266.96,0.0003138,2]
[314342052,1708204238792,-152.09,0.00031408,2]
[314342054,1708204238802,-2000.0,0.00031463,2]
[314342056,1708204238812,-152.09,0.00031525,2]
[314342058,1708204238820,-196.83,0.00031612,2]
[314342060,1708204238830,-152.09,0.00031641,2]
[314342062,1708204238839,-500.0,0.00031703,2]
[314342064,1708204238848,-640.0,0.00031734,2]
[314342066,1708204238857,-517.88050012,0.00031744,2]
[314342068,1708204238867,-152.09,0.00031758,2]
[314342070,1708204238876,-196.83,0.00031778,2]
[314342072,1708204238885,-25604.6788285,0.000318,3]
[314342074,1708204238895,-152.09,0.00031874,2]
[314342076,1708204238903,-196.83,0.00031944,2]
[314342078,1708204238913,-152.09,0.0003199,2]
[314342080,1708204238922,-1042.92454175,0.00032013,2]
[314342082,1708204238931,-152.09,0.00032107,2]
[314342085,1708204238941,-196.83,0.00032111,2]
[314342086,1708204238950,-152.09,0.00032223,2]
[314342088,1708204238959,-196.83,0.00032277,2]
[314342090,1708204238968,-181.58,0.00032311,2]
[314342092,1708204238977,-152.09,0.0003234,2]
[314342094,1708204238986,-196.83,0.00032444,2]
[314342096,1708204238995,-152.09,0.00032456,2]
[314342098,1708204239004,-152.09,0.00032573,2]
[314342100,1708204239014,-166.77,0.00032594,2]
[314342102,1708204239023,-2138.24161961,0.00032603,4]
[314342105,1708204239034,-196.83,0.0003261,2]
[314342107,1708204239043,-152.09,0.00032689,2]
[314342109,1708204239053,-1174.74,0.00032703,2]
[314342111,1708204239062,-1101.23,0.00032771,2]
[314342113,1708204239071,-196.83,0.00032776,2]
[314342115,1708204239080,-905.7299248,0.000328,2]
[314342117,1708204239089,-152.09,0.00032806,2]
[314342119,1708204239098,-152.09,0.00032922,2]
[314342121,1708204239108,-304.17773577,0.00032937,2]
[314342123,1708204239117,-196.83,0.00032943,2]
[314342125,1708204239126,-9953.87551825,0.00033,2]
[314342127,1708204239136,-965.79789301,0.00033,2]
[314342129,1708204239145,-196.83,0.00033109,2]
[314342131,1708204239155,-2138.2416196,0.00033255,5]
[314342133,1708204239170,-196.83,0.00033275,2]
[314342135,1708204239179,-529.9847292,0.00033313,6]
[314342137,1708204239188,-196.83,0.00033442,2]
[314342139,1708204239198,-732.42866769,0.000335,2]
[314342140,1708204239207,-703.48,0.00033579,2]
[314342143,1708204239216,-307.65,0.00033585,2]
[314342144,1708204239225,-196.83,0.00033608,2]
[314342146,1708204239234,-304.17773577,0.00033669,2]
[314342149,1708204239244,-196.83,0.00033775,2]
[314342151,1708204239254,-153.06524285,0.000339,2]
[314342153,1708204239263,-2138.2416196,0.00033908,6]
[314342154,1708204239273,-196.83,0.00033941,2]
[314342156,1708204239282,-154.02,0.00034047,2]
[314342158,1708204239291,-167.74,0.00034081,2]
[314342160,1708204239300,-196.83,0.00034107,2]
[314342162,1708204239309,-273.05,0.00034171,2]
[314342164,1708204239318,-153.06524285,0.00034264,2]
[314342166,1708204239327,-196.83,0.00034274,2]
[314342168,1708204239336,-304.17773577,0.00034401,2]
[314342170,1708204239345,-1101.23,0.00034415,2]
[314342172,1708204239354,-196.83,0.0003444,2]
[314342174,1708204239363,-1617.09,0.00034521,2]
[314342176,1708204239374,-2138.2416196,0.0003456,7]
[314342178,1708204239383,-196.83,0.00034607,2]
[314342180,1708204239392,-196.83,0.00034773,2]
[314342182,1708204239401,-388.864784,0.000348,2]
[314342184,1708204239410,-332.85621567,0.000348,2]
[314342186,1708204239419,-800.0,0.00034877,2]
[314342189,1708204239428,-14919.65420587,0.000349,2]
[314342190,1708204239437,-1748.27110105,0.0003499,2]
[314342192,1708204239446,-527.1525482,0.00035,2]
[314342194,1708204239455,-2076.46656144,0.00035,7]
[314342197,1708204239464,-628.65642046,0.00035,2]
[314342199,1708204239474,-205.0,0.00035013,2]
[314342200,1708204239483,-9503.85083374,0.0003509,2]
[314342203,1708204239492,-234.021833,0.00035098,3]
[314342205,1708204239501,-304.17773577,0.00035132,2]
[314342207,1708204239511,-234.021833,0.00035198,4]
[314342209,1708204239520,-2138.2416196,0.00035213,7]
[314342211,1708204239529,-307.65,0.00035264,2]